fUST/lending_fUST_20250718
["ID","MTS","AMOUNT","RATE_DAILY","PERIOD"]
[372936844,1752814251815,-460.0,0.00016986,2]
[372936845,1752814251826,-788.57,0.00016986,2]
[372936846,1752814251835,-815.73,0.00016986,2]
[372936847,1752814251845,-460.0,0.00016986,2]
[372936848,1752814251855,-3087.49,0.00016986,2]
[372936849,1752814251864,-703.98,0.00016986,2]
[372936850,1752814251875,-310.55750851,0.00016986,2]
[372936851,1752814251885,-733.98,0.00016986,2]
[372936852,1752814251894,-866.64,0.00016986,2]
[372936853,1752814251904,-1531.18,0.00016986,2]
[372936854,1752814251915,-480.23,0.00016986,2]
[372936855,1752814251924,-794.47,0.00016986,2]
[372936856,1752814251934,-420.88806263,0.00016986,2]
[372936857,1752814251943,-460.0,0.00016986,2]
[372936858,1752814251953,-7082.82,0.00016986,2]
[372936859,1752814251963,-460.0,0.00016986,2]
[372936860,1752814251973,-460.0,0.00016986,2]
[372936861,1752814251983,-2241.65,0.00016986,2]
[372936862,1752814251992,-2622.92,0.00016986,2]
[372936863,1752814252002,-460.0,0.00016986,2]
[372936864,1752814252012,-5019.62,0.00016986,2]
[372936865,1752814252021,-460.0,0.00016986,2]
[372936866,1752814252031,-447.58832021,0.00016986,2]
[372936867,1752814252041,-460.0,0.00016986,2]
[372936868,1752814252051,-460.0,0.00016986,2]
[372936869,1752814252060,-460.0,0.00016986,2]
[372936870,1752814252070,-2466.27,0.00016986,2]
[372936871,1752814252080,-462.20652156,0.00016986,2]
[372936872,1752814252089,-460.0,0.00016986,2]
[372936873,1752814252099,-686.62240602,0.00017021,2]
[372936874,1752814252109,-1004.70318548,0.00017021,2]
[372936875,1752814252119,-502.33047726,0.00017021,2]
[372936876,1752814252129,-1000.0,0.00017021,2]
[372936877,1752814252139,-1000.0,0.00017021,2]
[372936878,1752814252148,-399.18964226,0.00017021,2]
[372936879,1752814252158,-1000.0,0.00017021,2]
[372936880,1752814252168,-415.23938528,0.00017021,2]
[372936881,1752814252177,-1000.0,0.00017021,2]
[372936882,1752814252187,-509.30539097,0.00017021,2]
[372936883,1752814252196,-1000.0,0.00017021,2]
[372936884,1752814252206,-1000.0,0.00017021,2]
[372936885,1752814252216,-500.0,0.00017021,2]
[372936886,1752814252225,-2945.44846307,0.0001716,2]
[372936887,1752814252235,-345.0,0.00017204,2]
[372936888,1752814252245,-334.87578008,0.00017204,2]
[372936889,1752814252256,-465.7777132,0.0001726,2]
[372936890,1752814252266,-460.0,0.0001726,2]
[372936891,1752814252275,-460.0,0.0001726,2]
[372936892,1752814252286,-460.0,0.0001726,2]
[372936893,1752814252297,-460.0,0.0001726,2]
[372936894,1752814252307,-460.0,0.0001726,2]
[372936895,1752814252318,-460.0,0.0001726,2]
[372936896,1752814252328,-460.0,0.0001726,2]
[372936897,1752814252339,-460.0,0.0001726,2]
[372936898,1752814252349,-428.0333755,0.0001726,2]
[372936899,1752814252359,-460.0,0.0001726,2]
[372936900,1752814252369,-460.0,0.0001726,2]
[372936901,1752814252381,-460.0,0.0001726,2]
[372936902,1752814252391,-460.0,0.0001726,2]
[372936903,1752814252401,-460.0,0.0001726,2]
[372936904,1752814252411,-460.0,0.0001726,2]
[372936905,1752814252421,-462.04287741,0.0001726,2]
[372936906,1752814252431,-460.0,0.0001726,2]
[372936907,1752814252440,-460.0,0.0001726,2]
[372936908,1752814252449,-460.0,0.0001726,2]
[372936909,1752814252459,-460.0,0.0001726,2]
[372936910,1752814252470,-460.0,0.0001726,2]
[372936911,1752814252480,-465.23007305,0.0001726,2]
[372936912,1752814252490,-460.0,0.0001726,2]
[372936913,1752814252501,-511.85597962,0.0001726,2]
[372936914,1752814252511,-460.0,0.0001726,2]
[372936915,1752814252520,-460.0,0.0001726,2]
[372936916,1752814252530,-460.0,0.0001726,2]
[372936917,1752814252540,-460.0,0.0001726,2]
[372936918,1752814252550,-460.0,0.0001726,2]
[372936919,1752814252560,-617.58,0.0001726,2]
[372936920,1752814252570,-460.0,0.0001726,2]
[372936921,1752814252580,-460.0,0.0001726,2]
[372936922,1752814252591,-460.0,0.0001726,2]
[372936923,1752814252601,-460.0,0.0001726,2]
[372936924,1752814252756,-460.0,0.0001726,2]
[372936925,1752814252767,-460.0,0.0001726,2]
[372936926,1752814252777,-460.0,0.0001726,2]
[372936927,1752814252786,-962.22,0.0001726,2]
[372936928,1752814252798,-460.0,0.0001726,2]
[372936929,1752814252808,-460.0,0.0001726,2]
[372936930,1752814252818,-996.21,0.0001726,2]
[372936931,1752814252830,-460.0,0.0001726,2]
[372936932,1752814252840,-445.28424028,0.0001726,2]
[372936933,1752814252850,-460.0,0.0001726,2]
[372936934,1752814252859,-460.0,0.0001726,2]
[372936935,1752814252869,-460.0,0.0001726,2]
[372936936,1752814252880,-460.0,0.0001726,2]
[372936937,1752814252890,-460.0,0.0001726,2]
[372936938,1752814252899,-504.97,0.0001726,2]
[372936939,1752814252909,-460.0,0.0001726,2]
[372936940,1752814252918,-460.0,0.0001726,2]
[372936941,1752814252928,-460.0,0.0001726,2]
[372936942,1752814252937,-460.0,0.0001726,2]
[372936943,1752814252947,-460.0,0.0001726,2]
[372936944,1752814252956,-460.0,0.0001726,2]
[372936945,1752814252967,-460.0,0.0001726,2]
[372936946,1752814252976,-452.86649527,0.0001726,2]
[372936947,1752814252986,-460.0,0.0001726,2]
[372936948,1752814252995,-460.0,0.0001726,2]
[372936949,1752814253005,-471.94,0.0001726,2]
[372936950,1752814253014,-557.15,0.0001726,2]
[372936951,1752814253023,-152.68615459,0.0001726,2]
[372936952,1752814253033,-460.0,0.0001726,2]
[372936953,1752814253042,-460.0,0.0001726,2]
[372936954,1752814253052,-460.0,0.0001726,2]
[372936955,1752814253061,-633.99,0.0001726,2]
[372936956,1752814253071,-367.30112972,0.0001726,2]
[372936957,1752814253080,-460.0,0.0001726,2]
[372936958,1752814253089,-559.65155913,0.0001726,2]
[372936959,1752814253098,-480.02,0.0001726,2]
[372936960,1752814253107,-460.0,0.0001726,2]
[372936961,1752814253116,-460.0,0.0001726,2]
[372936962,1752814253125,-745.89,0.0001726,2]
[372936963,1752814253134,-907.33,0.0001726,2]
[372936964,1752814253143,-460.0,0.0001726,2]
[372936965,1752814253153,-638.44,0.0001726,2]
[372936966,1752814253162,-460.0,0.0001726,2]
[372936967,1752814253171,-1126.45,0.0001726,2]
[372936968,1752814253181,-902.44,0.0001726,2]
[372936969,1752814253190,-460.0,0.0001726,2]
[372936970,1752814253199,-460.0,0.0001726,2]
[372936971,1752814253209,-686.15,0.0001726,2]
[372936972,1752814253219,-460.0,0.0001726,2]
[372936973,1752814253239,-460.0,0.0001726,2]
[372936974,1752814253252,-460.0,0.0001726,2]
[372936975,1752814253261,-460.0,0.0001726,2]
[372936976,1752814253271,-460.0,0.0001726,2]
[372936977,1752814253281,-460.0,0.0001726,2]
[372936978,1752814253291,-460.0,0.0001726,2]
[372936979,1752814253301,-460.0,0.0001726,2]
[372936980,1752814253311,-654.1,0.0001726,2]
[372936981,1752814253321,-555.02,0.0001726,2]
[372936982,1752814253332,-460.0,0.0001726,2]
[372936983,1752814253342,-712.9,0.0001726,2]
[372936984,1752814253351,-460.0,0.0001726,2]
[372936985,1752814253361,-465.47,0.0001726,2]
[372936986,1752814253371,-460.0,0.0001726,2]
[372936987,1752814253382,-460.0,0.0001726,2]
[372936988,1752814253393,-460.0,0.0001726,2]
[372936989,1752814253402,-460.0,0.0001726,2]
[372936990,1752814253412,-460.0,0.0001726,2]
[372936991,1752814253423,-462.34,0.0001726,2]
[372936992,1752814253432,-460.0,0.0001726,2]
[372936993,1752814253442,-460.0,0.0001726,2]
[372936994,1752814253452,-366.52305814,0.0001726,2]
[372936995,1752814253462,-460.0,0.0001726,2]
[372936996,1752814253474,-460.0,0.0001726,2]
[372936997,1752814253486,-683.36,0.0001726,2]
[372936998,1752814253496,-460.0,0.0001726,2]
[372936999,1752814253506,-2418.55,0.0001726,2]
[372937000,1752814253516,-460.0,0.0001726,2]
[372937001,1752814253527,-460.0,0.0001726,2]
[372937002,1752814253537,-1045.61,0.0001726,2]
[372937003,1752814253547,-460.0,0.0001726,2]
[372937004,1752814253556,-441.50982227,0.0001726,2]
[372937005,1752814253567,-538.01,0.0001726,2]
[372937006,1752814253577,-460.0,0.0001726,2]
[372937007,1752814253587,-460.0,0.0001726,2]
[372937008,1752814253597,-460.0,0.0001726,2]
[372937009,1752814253607,-460.0,0.0001726,2]
[372937010,1752814253617,-460.0,0.0001726,2]
[372937011,1752814253627,-560.07,0.0001726,2]
[372937012,1752814253637,-460.0,0.0001726,2]
[372937013,1752814253647,-460.0,0.0001726,2]
[372937014,1752814253656,-460.0,0.0001726,2]
[372937015,1752814253667,-686.49,0.0001726,2]
[372937016,1752814253676,-460.0,0.0001726,2]
[372937017,1752814253686,-460.0,0.0001726,2]
[372937018,1752814253696,-460.0,0.0001726,2]
[372937019,1752814253706,-460.0,0.0001726,2]
[372937020,1752814253718,-575.9889846,0.0001726,2]
[372937021,1752814253728,-460.0,0.0001726,2]
[372937022,1752814253737,-460.0,0.0001726,2]
[372937023,1752814253748,-883.96,0.0001726,2]
[372937024,1752814253762,-500.0,0.0001726,2]
[372937025,1752814253771,-460.0,0.0001726,2]
[372937026,1752814253782,-460.0,0.0001726,2]
[372937027,1752814253791,-460.0,0.0001726,2]
[372937028,1752814253801,-460.0,0.0001726,2]
[372937029,1752814253812,-460.0,0.0001726,2]
[372937030,1752814253822,-460.0,0.0001726,2]
[372937031,1752814253834,-1347.37,0.0001726,2]
[372937032,1752814253844,-951.1,0.0001726,2]
[372937033,1752814253854,-460.0,0.0001726,2]
[372937034,1752814253864,-642.72,0.0001726,2]
[372937035,1752814253874,-460.0,0.0001726,2]
[372937036,1752814253884,-460.0,0.0001726,2]
[372937037,1752814253894,-460.0,0.0001726,2]
[372937038,1752814253904,-460.0,0.0001726,2]
[372937039,1752814253914,-460.0,0.0001726,2]
[372937040,1752814253924,-460.0,0.0001726,2]
[372937041,1752814253933,-460.0,0.0001726,2]
[372937042,1752814253943,-460.0,0.0001726,2]
[372937043,1752814253952,-460.0,0.0001726,2]
[372937044,1752814253963,-460.0,0.0001726,2]
[372937045,1752814253973,-463.30864532,0.0001726,2]
[372937046,1752814253982,-855.25,0.0001726,2]
[372937047,1752814253991,-618.09,0.0001726,2]
[372937048,1752814254002,-460.0,0.0001726,2]
[372937049,1752814254012,-460.0,0.0001726,2]
[372937050,1752814254022,-466.15166201,0.0001726,2]
[372937051,1752814254032,-4686.52,0.0001726,2]
[372937052,1752814254041,-460.0,0.0001726,2]
[372937053,1752814254051,-460.0,0.0001726,2]
[372937054,1752814254061,-723.7,0.0001726,2]
[372937055,1752814254071,-460.0,0.0001726,2]
[372937056,1752814254080,-460.0,0.0001726,2]
[372937057,1752814254090,-460.0,0.0001726,2]
[372937058,1752814254099,-582.84236917,0.0001726,2]
[372937059,1752814254109,-460.0,0.0001726,2]
[372937060,1752814254119,-460.0,0.0001726,2]
[372937061,1752814254128,-460.0,0.0001726,2]
[372937062,1752814254138,-460.0,0.0001726,2]
[372937063,1752814254148,-460.0,0.0001726,2]
[372937064,1752814254158,-460.0,0.0001726,2]
[372937065,1752814254168,-460.0,0.0001726,2]
[372937066,1752814254178,-1372.5,0.0001726,2]
[372937067,1752814254187,-460.0,0.0001726,2]
[372937068,1752814254197,-3660.04,0.0001726,2]
[372937069,1752814254207,-898.43,0.0001726,2]
[372937070,1752814254217,-3275.21,0.0001726,2]
[372937071,1752814254226,-1144.81,0.0001726,2]
[372937072,1752814254236,-460.0,0.0001726,2]
[372937073,1752814254246,-460.0,0.0001726,2]
[372937074,1752814254256,-899.51,0.0001726,2]
[372937075,1752814254265,-908.6,0.0001726,2]
[372937076,1752814254275,-460.0,0.0001726,2]
[372937077,1752814254284,-460.0,0.0001726,2]
[372937078,1752814254294,-460.0,0.0001726,2]
[372937079,1752814254304,-460.0,0.0001726,2]
[372937080,1752814254314,-460.0,0.0001726,2]
[372937081,1752814254324,-460.0,0.0001726,2]
[372937082,1752814254334,-884.48,0.0001726,2]
[372937083,1752814254344,-965.48,0.0001726,2]
[372937084,1752814254354,-460.0,0.0001726,2]
[372937085,1752814254363,-888.06,0.0001726,2]
[372937086,1752814254374,-766.66,0.0001726,2]
[372937087,1752814254384,-460.0,0.0001726,2]
[372937088,1752814254394,-460.0,0.0001726,2]
[372937089,1752814254404,-460.0,0.0001726,2]
[372937090,1752814254414,-460.0,0.0001726,2]
[372937091,1752814254425,-1451.87,0.0001726,2]
[372937092,1752814254435,-460.0,0.0001726,2]
[372937093,1752814254445,-460.0,0.0001726,2]
[372937094,1752814254455,-460.0,0.0001726,2]
[372937095,1752814254464,-460.0,0.0001726,2]
[372937096,1752814254474,-460.0,0.0001726,2]
[372937097,1752814254484,-789.94,0.0001726,2]
[372937098,1752814254494,-3558.83,0.0001726,2]
[372937099,1752814254503,-1037.24,0.0001726,2]
[372937100,1752814254514,-460.0,0.0001726,2]
[372937101,1752814254524,-652.7,0.0001726,2]
[372937102,1752814254534,-460.0,0.0001726,2]
[372937103,1752814254544,-460.0,0.0001726,2]
[372937104,1752814254554,-5829.63,0.0001726,2]
[372937105,1752814254563,-460.0,0.0001726,2]
[372937106,1752814254573,-460.0,0.0001726,2]
[372937107,1752814254583,-460.0,0.0001726,2]
[372937108,1752814254593,-460.0,0.0001726,2]
[372937109,1752814254602,-451.43050183,0.0001726,2]
[372937110,1752814254612,-2475.6,0.0001726,2]
[372937111,1752814254622,-460.0,0.0001726,2]
[372937112,1752814254632,-463.45438016,0.0001726,2]
[372937113,1752814254641,-921.62,0.0001726,2]
[372937114,1752814254651,-460.0,0.0001726,2]
[372937115,1752814254662,-727.58,0.0001726,2]
[372937116,1752814254672,-460.0,0.0001726,2]
[372937117,1752814254682,-2187.72,0.0001726,2]
[372937118,1752814254691,-460.0,0.0001726,2]
[372937119,1752814254701,-460.0,0.0001726,2]
[372937120,1752814254711,-1653.45,0.0001726,2]
[372937121,1752814254723,-785.77,0.0001726,2]
[372937122,1752814254733,-460.0,0.0001726,2]
[372937123,1752814254743,-460.0,0.0001726,2]
[372937124,1752814254754,-698.36,0.0001726,2]
[372937125,1752814254765,-1105.74,0.0001726,2]
[372937126,1752814254775,-460.0,0.0001726,2]
[372937127,1752814254784,-822.88,0.0001726,2]
[372937128,1752814254793,-1074.47,0.0001726,2]
[372937129,1752814254804,-656.95,0.0001726,2]
[372937130,1752814254814,-460.0,0.0001726,2]
[372937131,1752814254825,-460.0,0.0001726,2]
[372937132,1752814254835,-460.0,0.0001726,2]
[372937133,1752814254844,-460.0,0.0001726,2]
[372937134,1752814254854,-460.0,0.0001726,2]
[372937135,1752814254863,-460.0,0.0001726,2]
[372937136,1752814254873,-1003.73,0.0001726,2]
[372937137,1752814254883,-460.0,0.0001726,2]
[372937138,1752814254893,-460.0,0.0001726,2]
[372937139,1752814254903,-460.0,0.0001726,2]
[372937140,1752814254912,-774.39,0.0001726,2]
[372937141,1752814254922,-809.59,0.0001726,2]
[372937142,1752814254932,-460.0,0.0001726,2]
[372937143,1752814254941,-575.36,0.0001726,2]
[372937144,1752814254951,-460.0,0.0001726,2]
[372937145,1752814254960,-460.0,0.0001726,2]
[372937146,1752814254971,-460.0,0.0001726,2]
[372937147,1752814254981,-460.0,0.0001726,2]
[372937148,1752814254990,-788.57,0.0001726,2]
[372937149,1752814255000,-815.73,0.0001726,2]
[372937150,1752814255010,-465.76679733,0.0001726,2]
[372937151,1752814255019,-3087.49,0.0001726,2]
[372937152,1752814255028,-703.98,0.0001726,2]
[372937153,1752814255038,-733.98,0.0001726,2]
[372937154,1752814255047,-866.64,0.0001726,2]
[372937155,1752814255057,-1531.18,0.0001726,2]
[372937156,1752814255066,-480.23,0.0001726,2]
[372937157,1752814255076,-794.47,0.0001726,2]
[372937158,1752814255085,-484.52576043,0.0001726,2]
[372937159,1752814255094,-7082.82,0.0001726,2]
[372937160,1752814255104,-392.73480282,0.0001726,2]
[372937161,1752814255114,-460.0,0.0001726,2]
[372937162,1752814255123,-2241.65,0.0001726,2]
[372937163,1752814255133,-2622.92,0.0001726,2]
[372937164,1752814255142,-5019.62,0.0001726,2]
[372937165,1752814255151,-460.0,0.0001726,2]
[372937166,1752814255161,-460.0,0.0001726,2]
[372937167,1752814255171,-156.34302613,0.0001726,2]
[372937168,1752814255180,-466.46354805,0.0001726,2]
[372937169,1752814255190,-460.0,0.0001726,2]
[372937170,1752814255200,-2466.27,0.0001726,2]
[372937171,1752814255210,-509.65564283,0.00017321,2]
[372937172,1752814255221,-1000.0,0.00017321,2]
[372937173,1752814255231,-828.94771973,0.00017321,2]
[372937174,1752814255240,-818.91407752,0.00017321,2]
[372937175,1752814255249,-1000.0,0.00017321,2]
[372937176,1752814255259,-501.61679817,0.00017321,2]
[372937177,1752814255269,-1000.0,0.00017321,2]
[372937178,1752814255404,-2945.44846307,0.00017434,2]
[372937179,1752814255415,-1474.46,0.00017498,3]
[372937180,1752814255425,-737.22,0.00017498,3]
[372937181,1752814255435,-368.62,0.00017498,3]
[372937182,1752814255444,-500.0,0.00017521,2]
[372937183,1752814255454,-1000.0,0.00017521,2]
[372937184,1752814255464,-1000.0,0.00017521,2]
[372937185,1752814255475,-1003.55301503,0.00017521,2]
[372937186,1752814255484,-503.16684721,0.00017521,2]
[372937187,1752814255493,-500.0,0.00017521,2]
[372937188,1752814255503,-500.13680173,0.00017521,2]
[372937189,1752814255513,-1000.0,0.00017521,2]
[372937190,1752814255523,-460.0,0.00017534,2]
[372937191,1752814255533,-460.0,0.00017534,2]
[372937192,1752814255543,-460.0,0.00017534,2]
[372937193,1752814255553,-460.0,0.00017534,2]
[372937194,1752814255562,-460.0,0.00017534,2]
[372937195,1752814255572,-347.84,0.00017534,2]
[372937196,1752814255581,-209.42030284,0.00017534,2]
[372937197,1752814255591,-460.0,0.00017534,2]
[372937198,1752814255600,-460.0,0.00017534,2]
[372937199,1752814255610,-460.0,0.00017534,2]
[372937200,1752814255619,-460.0,0.00017534,2]
[372937201,1752814255629,-460.0,0.00017534,2]
[372937202,1752814255639,-460.0,0.00017534,2]
[372937203,1752814255648,-460.0,0.00017534,2]
[372937204,1752814255659,-531.50410884,0.00017534,2]
[372937205,1752814255668,-464.18653191,0.00017534,2]
[372937206,1752814255677,-460.0,0.00017534,2]
[372937207,1752814255687,-460.0,0.00017534,2]
[372937208,1752814255697,-460.0,0.00017534,2]
[372937209,1752814255706,-460.0,0.00017534,2]
[372937210,1752814255718,-460.0,0.00017534,2]
[372937211,1752814255728,-460.0,0.00017534,2]
[372937212,1752814255737,-617.58,0.00017534,2]
[372937213,1752814255747,-460.0,0.00017534,2]
[372937214,1752814255760,-460.0,0.00017534,2]
[372937215,1752814255770,-460.0,0.00017534,2]
[372937216,1752814255780,-460.0,0.00017534,2]
[372937217,1752814255789,-460.0,0.00017534,2]
[372937218,1752814255801,-460.0,0.00017534,2]
[372937219,1752814255811,-460.0,0.00017534,2]
[372937220,1752814255820,-962.22,0.00017534,2]
[372937221,1752814255831,-463.55403028,0.00017534,2]
[372937222,1752814255841,-460.0,0.00017534,2]
[372937223,1752814255850,-996.21,0.00017534,2]
[372937224,1752814255859,-308.11499484,0.00017534,2]
[372937225,1752814255869,-460.0,0.00017534,2]
[372937226,1752814255879,-460.0,0.00017534,2]
[372937227,1752814255888,-460.0,0.00017534,2]
[372937228,1752814255897,-504.97,0.00017534,2]
[372937229,1752814255906,-460.0,0.00017534,2]
[372937230,1752814255916,-460.0,0.00017534,2]
[372937231,1752814255926,-460.0,0.00017534,2]
[372937232,1752814255936,-460.0,0.00017534,2]
[372937233,1752814255946,-460.0,0.00017534,2]
[372937234,1752814255956,-460.0,0.00017534,2]
[372937235,1752814255967,-460.0,0.00017534,2]
[372937236,1752814255977,-460.0,0.00017534,2]
[372937237,1752814255986,-460.0,0.00017534,2]
[372937238,1752814255996,-460.0,0.00017534,2]
[372937239,1752814256005,-471.94,0.00017534,2]
[372937240,1752814256014,-557.15,0.00017534,2]
[372937241,1752814256023,-460.0,0.00017534,2]
[372937242,1752814256033,-460.0,0.00017534,2]
[372937243,1752814256044,-476.54690873,0.00017534,2]
[372937244,1752814256053,-633.99,0.00017534,2]
[372937245,1752814256064,-460.0,0.00017534,2]
[372937246,1752814256073,-480.02,0.00017534,2]
[372937247,1752814256083,-460.0,0.00017534,2]
[372937248,1752814256092,-460.0,0.00017534,2]
[372937249,1752814256102,-745.89,0.00017534,2]
[372937250,1752814256112,-907.33,0.00017534,2]
[372937251,1752814256122,-460.0,0.00017534,2]
[372937252,1752814256131,-638.44,0.00017534,2]
[372937253,1752814256141,-460.0,0.00017534,2]
[372937254,1752814256151,-1126.45,0.00017534,2]
[372937255,1752814256160,-902.44,0.00017534,2]
[372937256,1752814256170,-460.0,0.00017534,2]
[372937257,1752814256179,-460.0,0.00017534,2]
[372937258,1752814256189,-686.15,0.00017534,2]
[372937259,1752814256198,-250.6523242,0.00017534,2]
[372937260,1752814256208,-460.0,0.00017534,2]
[372937261,1752814256217,-460.0,0.00017534,2]
[372937262,1752814256227,-460.0,0.00017534,2]
[372937263,1752814256236,-460.0,0.00017534,2]
[372937264,1752814256245,-460.0,0.00017534,2]
[372937265,1752814256254,-654.1,0.00017534,2]
[372937266,1752814256264,-555.02,0.00017534,2]
[372937267,1752814256274,-460.0,0.00017534,2]
[372937268,1752814256283,-712.9,0.00017534,2]
[372937269,1752814256292,-460.0,0.00017534,2]
[372937270,1752814256302,-465.47,0.00017534,2]
[372937271,1752814256311,-460.0,0.00017534,2]
[372937272,1752814256321,-460.0,0.00017534,2]
[372937273,1752814256330,-460.0,0.00017534,2]
[372937274,1752814256340,-462.34,0.00017534,2]
[372937275,1752814256349,-460.0,0.00017534,2]
[372937276,1752814256359,-460.0,0.00017534,2]
[372937277,1752814256368,-460.0,0.00017534,2]
[372937278,1752814256378,-460.0,0.00017534,2]
[372937279,1752814256387,-683.36,0.00017534,2]
[372937280,1752814256397,-460.0,0.00017534,2]
[372937281,1752814256406,-2418.55,0.00017534,2]
[372937282,1752814256416,-460.0,0.00017534,2]
[372937283,1752814256426,-1045.61,0.00017534,2]
[372937284,1752814256435,-460.0,0.00017534,2]
[372937285,1752814256445,-538.01,0.00017534,2]
[372937286,1752814256454,-460.0,0.00017534,2]
[372937287,1752814256464,-460.0,0.00017534,2]
[372937288,1752814256474,-460.0,0.00017534,2]
[372937289,1752814256484,-460.0,0.00017534,2]
[372937290,1752814256494,-460.0,0.00017534,2]
[372937291,1752814256503,-560.07,0.00017534,2]
[372937292,1752814256513,-460.0,0.00017534,2]
[372937293,1752814256524,-460.0,0.00017534,2]
[372937294,1752814256533,-460.0,0.00017534,2]
[372937295,1752814256543,-686.49,0.00017534,2]
[372937296,1752814256552,-460.0,0.00017534,2]
[372937297,1752814256562,-460.0,0.00017534,2]
[372937298,1752814256571,-460.0,0.00017534,2]
[372937299,1752814256581,-460.0,0.00017534,2]
[372937300,1752814256591,-250.57475707,0.00017534,2]
[372937301,1752814256611,-460.0,0.00017534,2]
[372937302,1752814256626,-883.96,0.00017534,2]
[372937303,1752814256640,-546.0604165,0.00017534,2]
[372937304,1752814256656,-460.0,0.00017534,2]
[372937305,1752814256670,-460.0,0.00017534,2]
[372937306,1752814256681,-460.0,0.00017534,2]
[372937307,1752814256691,-460.0,0.00017534,2]
[372937308,1752814256701,-460.0,0.00017534,2]
[372937309,1752814256712,-460.0,0.00017534,2]
[372937310,1752814256724,-1347.37,0.00017534,2]
[372937311,1752814256735,-951.1,0.00017534,2]
[372937312,1752814256746,-460.0,0.00017534,2]
[372937313,1752814256759,-642.72,0.00017534,2]
[372937314,1752814256768,-460.0,0.00017534,2]
[372937315,1752814256778,-460.0,0.00017534,2]
[372937316,1752814256787,-460.0,0.00017534,2]
[372937317,1752814256798,-460.0,0.00017534,2]
[372937318,1752814256807,-460.0,0.00017534,2]
[372937319,1752814256816,-460.0,0.00017534,2]
[372937320,1752814256826,-460.0,0.00017534,2]
[372937321,1752814256836,-460.0,0.00017534,2]
[372937322,1752814256846,-460.0,0.00017534,2]
[372937323,1752814256856,-855.25,0.00017534,2]
[372937324,1752814256865,-618.09,0.00017534,2]
[372937325,1752814256875,-460.0,0.00017534,2]
[372937326,1752814256884,-567.84196266,0.00017534,2]
[372937327,1752814256895,-4686.52,0.00017534,2]
[372937328,1752814256905,-460.0,0.00017534,2]
[372937329,1752814256914,-460.0,0.00017534,2]
[372937330,1752814256924,-723.7,0.00017534,2]
[372937331,1752814256934,-460.0,0.00017534,2]
[372937332,1752814256943,-460.0,0.00017534,2]
[372937333,1752814256952,-460.0,0.00017534,2]
[372937334,1752814256962,-460.0,0.00017534,2]
[372937335,1752814256973,-460.0,0.00017534,2]
[372937336,1752814256982,-460.0,0.00017534,2]
[372937337,1752814256992,-344.03882409,0.00017534,2]
[372937338,1752814257001,-460.0,0.00017534,2]
[372937339,1752814257011,-460.0,0.00017534,2]
[372937340,1752814257020,-460.0,0.00017534,2]
[372937341,1752814257030,-1372.5,0.00017534,2]
[372937342,1752814257039,-460.0,0.00017534,2]
[372937343,1752814257048,-3660.04,0.00017534,2]